[Event "FIDE World Cup O12-A 2024"]
[Site "Batumi"]
[Date "2024.06.24"]
[Round "2.8"]
[White "Diasamidze, Rati"]
[Black "Guo, Ethan"]
[Result "0-1"]
[ECO "D86"]
[WhiteElo "1646"]
[BlackElo "2136"]
[Annotator "RC"]
[PlyCount "67"]
[EventDate "2024.06.23"]
[EventType "swiss"]
[EventCountry "GEO"]
[SourceTitle "playchess.com"]
[Source "ChessBase"]
[SourceQuality "1"]
[TimeControl "5400+30"]

1. d4 {[%emt 0:00:03]} Nf6 {[%emt 0:00:04]} 2. c4 {[%emt 0:00:07]} g6 {[%emt 0:00:04]} 3. Nc3 {[%emt 0:00:09]} d5 {[%emt 0:00:04]} 4. cxd5 {[%emt 0:00:18]} Nxd5 {[%emt 0:00:07]} 5. e4 {[%emt 0:00:16]} Nxc3 {[%emt 0:00:06]} 6. bxc3 {[%emt 0:00:08]} Bg7 {[%emt 0:00:04]} 7. Bc4 {[%emt 0:01:21]} c5 {[%emt 0:00:10]} 8. Be3 {[%emt 0:01:27]} Qa5 {[%emt 0:03:29]} 9. Qd2 {[%emt 0:04:11]} Nc6 {[%emt 0:00:36]} 10. Rd1 {[%emt 0:03:18]} O-O {[%emt 0:02:27]} 11. Ne2 {[%emt 0:07:55]} Rd8 {[%emt 0:04:31]} 12. O-O {[%emt 0:05:24]} b5 {[%emt 0:04:00]} 13. Bd5 {[%emt 0:04:21]} Bb7 {[%emt 0:02:13]} 14. Qc2 {[%emt 0:09:08]} cxd4 {[%emt 0:02:53]} 15. Bxc6 {[%emt 0:07:37]} d3 {[%emt 0:02:03]} 16. Rxd3 {[%emt 0:02:56]} Bxc6 {[%emt 0:00:10]} 17. Rd2 {[%emt 0:09:52]} Rxd2 {[%emt 0:07:53]} 18. Bxd2 {[%emt 0:00:37]} Rd8 {[%emt 0:00:49]} 19. f3 {[%emt 0:09:11]} Qb6+ {[%emt 0:00:51]} 20. Kh1 {[%emt 0:01:56]} Qc5 {[%emt 0:00:04]} 21. Nc1 {[%emt 0:07:40]} Qc4 {[%emt 0:00:44]} 22. Re1 {[%emt 0:06:48]} b4 {[%emt 0:02:42]} 23. Ne2 {[%emt 0:12:06]} Qd3 {[%emt 0:00:46]} 24. Qxd3 {[%emt 0:00:26]} Rxd3 {[%emt 0:00:05]} 25. Bf4 {[%emt 0:01:57]} bxc3 {[%emt 0:00:22]} 26. Kg1 {[%emt 0:01:19]} c2 {[%emt 0:00:09]} 27. Nc1 {[%emt 0:01:59]} Bd4+ {[%emt 0:00:23]} 28. Kf1 {[%emt 0:01:25]} Bb5 {[%emt 0:00:25]} 29. Nxd3 {[%emt 0:00:32]} Bxd3+ {[%emt 0:00:07]} 30. Re2 {[%emt 0:00:08]} Bxe2+ {[%emt 0:00:07]} 31. Kxe2 {[%emt 0:00:11]} Bb2 {[%emt 0:00:05]} 32. Kd3 {[%emt 0:01:11]} c1=Q {[%emt 0:00:13]} 33. Bxc1 {[%emt 0:00:10]} Bxc1 {[%emt 0:00:04]} 34. Kd4 {[%emt 0:01:23]} 0-1

[Event "FIDE World Cup O12-A 2024"]
[Site "Batumi"]
[Date "2024.06.24"]
[Round "2.9"]
[White "Nanayakkara, Sanuk"]
[Black "Yang, Maxwell"]
[Result "1/2-1/2"]
[ECO "D02"]
[WhiteElo "1714"]
[BlackElo "1979"]
[Annotator "NA RC"]
[PlyCount "174"]
[EventDate "2024.06.23"]
[EventType "swiss"]
[EventCountry "GEO"]
[SourceTitle "playchess.com"]
[Source "ChessBase"]
[SourceQuality "1"]
[TimeControl "5400+30"]

1. Nf3 {[%emt 0:00:04]} d5 {[%emt 0:00:12]} 2. g3 {[%emt 0:00:15]} Nd7 {[%emt 0:00:19]} 3. d4 {[%emt 0:00:39]} Nb6 {[%emt 0:00:05]} 4. Bg2 {[%emt 0:00:17]} Bf5 {[%emt 0:00:08]} 5. O-O {[%emt 0:00:43]} e6 {[%emt 0:00:08]} 6. b3 {[%emt 0:05:12] D02: 1 d4 d5 2 Nf3 sidelines, including 2...Nf6 3 g3 and 2...Nf6 3 Bf4.} Nf6 {[%emt 0:00:47]} 7. c4 {[%emt 0:01:09]} c6 {[%emt 0:02:14]} 8. Nbd2 {[%emt 0:12:22]} Be7 {[%emt 0:09:31]} 9. Bb2 {[%emt 0:04:13]} O-O {[%emt 0:01:58]} 10. Ne5 {[%emt 0:03:05]} Nfd7 {[%emt 0:05:01]} 11. e4 {[%emt 0:07:04]} dxe4 {[%emt 0:17:00]} 12. Nxe4 {[%emt 0:02:22]} Bxe4 {[%emt 0:03:10]} 13. Bxe4 {[%emt 0:00:18]} f5 {[%emt 0:00:37]} 14. Bg2 {[%emt 0:03:19]} Nxe5 {[%emt 0:03:56]} 15. dxe5 {[%emt 0:00:27]} Bc5 {[%emt 0:01:10]} 16. Qxd8 {[%emt 0:30:15]} (16. Bc3 $14) 16... Rfxd8 {[%emt 0:03:04]} 17. Rfd1 {[%emt 0:02:47]} Kf7 {[%emt 0:08:40]} 18. Kf1 {[%emt 0:02:48]} Ke7 {[%emt 0:01:57]} 19. f4 {[%emt 0:03:04]} Rd7 {[%emt 0:06:51]} 20. Rxd7+ {[%emt 0:00:33]} Nxd7 {[%emt 0:01:00]} 21. Rd1 {[%emt 0:00:37]} a5 {[%emt 0:02:54]} 22. a3 {[%emt 0:04:36]} Ke8 {[%emt 0:01:57]} 23. Bc3 $11 {[%emt 0:02:23]} Bxa3 {[%emt 0:02:22]} 24. Ra1 {[%emt 0:00:05]} Be7 {[%emt 0:00:47]} 25. Rxa5 {[%emt 0:02:08]} Rxa5 {[%emt 0:00:07]} 26. Bxa5 {[%emt 0:00:02]} Nc5 {[%emt 0:00:20]} 27. b4 {[%emt 0:00:30]} Nb3 {[%emt 0:01:26]} 28. Ke2 {[%emt 0:00:37]} Bc5 {[%emt 0:18:32]} 29. Kd3 {[%emt 0:06:15]} Bg1 {[%emt 0:03:22]} 30. h3 {[%emt 0:00:28]} Nxa5 {[%emt 0:01:38]} 31. bxa5 {[%emt 0:00:03]} Bh2 {[%emt 0:00:07]} 32. Ke3 {[%emt 0:03:19]} Bxg3 {[%emt 0:01:14]} 33. Bxc6+ {[%emt 0:00:50]} Kd8 {[%emt 0:01:31]} 34. Bxb7 {[%emt 0:00:07]} Kc7 {[%emt 0:00:11]} 35. Bf3 {[%emt 0:03:05]} g5 {[%emt 0:00:22]} 36. fxg5 {[%emt 0:00:29]} Bxe5 {[%emt 0:00:09]} 37. h4 {[%emt 0:00:36]} Bc3 {[%emt 0:02:13]} 38. a6 {[%emt 0:00:42]} e5 {[%emt 0:00:33]} 39. h5 {[%emt 0:00:32]} Kb6 {[%emt 0:00:31]} 40. Bb7 {[%emt 0:00:46]} Bd4+ {[%emt 0:00:30]} 41. Kd3 {[%emt 0:00:34]} Bc5 {[%emt 0:01:06]} 42. Bc8 {[%emt 0:00:45]} e4+ {[%emt 0:00:09]} 43. Kd2 {[%emt 0:00:34]} f4 {[%emt 0:01:10]} 44. Bf5 {[%emt 0:00:23]} e3+ {[%emt 0:00:10]} 45. Ke2 {[%emt 0:00:06]} Be7 {[%emt 0:00:10]} 46. g6 {[%emt 0:00:40]} hxg6 {[%emt 0:00:18]} 47. hxg6 {[%emt 0:00:12]} Bf6 {[%emt 0:00:08]} 48. Bd3 {[%emt 0:00:38]} Kxa6 {[%emt 0:00:19]} 49. Kf3 {[%emt 0:00:03]} Kb6 {[%emt 0:00:54]} 50. Kxf4 {[%emt 0:00:18]} Bd4 {[%emt 0:00:52]} 51. Ke4 {[%emt 0:00:06]} Kc5 {[%emt 0:00:09]} 52. Bf1 {[%emt 0:00:17]} Bb2 {[%emt 0:01:19]} 53. Kxe3 {[%emt 0:00:06]} Kd6 {[%emt 0:00:11]} 54. Bd3 {[%emt 0:00:31]} Bc3 {[%emt 0:00:50]} 55. Ke4 {[%emt 0:00:10]} Bb2 {[%emt 0:00:59]} 56. Kf5 {[%emt 0:00:19]} Bg7 {[%emt 0:00:27]} 57. Be2 {[%emt 0:00:46]} Bc3 {[%emt 0:00:23]} 58. Bf3 {[%emt 0:00:21]} Bb2 {[%emt 0:00:11]} 59. Kg5 {[%emt 0:00:26]} Bg7 {[%emt 0:00:06]} 60. Kf5 {[%emt 0:00:08]} Bc3 {[%emt 0:00:07]} 61. Bd5 {[%emt 0:00:03]} Bb2 {[%emt 0:00:12]} 62. Ke4 {[%emt 0:00:49]} Bg7 {[%emt 0:00:11]} 63. Kd3 {[%emt 0:00:02]} Bf6 {[%emt 0:00:15]} 64. Kc2 {[%emt 0:00:11]} Kc5 {[%emt 0:00:11]} 65. Kb3 {[%emt 0:00:07]} Bg7 {[%emt 0:00:45]} 66. Ka4 {[%emt 0:00:09]} Bc3 {[%emt 0:00:17]} 67. Bf7 {[%emt 0:00:04]} Kb6 {[%emt 0:00:13]} 68. Kb3 {[%emt 0:00:10]} Bg7 {[%emt 0:00:06]} 69. Kb4 {[%emt 0:00:07]} Bf8+ {[%emt 0:00:05]} 70. Kc3 {[%emt 0:00:20]} Kc5 {[%emt 0:00:07]} 71. Kd3 {[%emt 0:00:04]} Bg7 {[%emt 0:00:06]} 72. Ke4 {[%emt 0:00:07]} Kd6 {[%emt 0:00:29]} 73. Kf5 {[%emt 0:00:16]} Bc3 {[%emt 0:00:12]} 74. Ke4 {[%emt 0:02:56]} Bg7 {[%emt 0:00:08]} 75. Bg8 {[%emt 0:00:42]} Bh8 {[%emt 0:00:36]} 76. Bd5 {[%emt 0:01:12]} Bg7 {[%emt 0:00:07]} 77. Kf5 {[%emt 0:00:04]} Bc3 {[%emt 0:00:05]} 78. Ke4 {[%emt 0:01:01]} Bg7 {[%emt 0:00:17]} 79. Kf4 {[%emt 0:01:36]} Bc3 {[%emt 0:00:14]} 80. Kg4 {[%emt 0:01:10]} Bf6 {[%emt 0:00:38]} 81. Be4 {[%emt 0:00:49]} Bc3 {[%emt 0:01:21]} 82. Bd5 {[%emt 0:01:08]} Bf6 {[%emt 0:00:20]} 83. Kf5 {[%emt 0:00:09]} Bc3 {[%emt 0:00:07]} 84. Kg5 {[%emt 0:00:08]} Bg7 {[%emt 0:00:27]} 85. Bf7 {[%emt 0:00:14]} Kc5 {[%emt 0:00:09]} 86. Kh5 {[%emt 0:00:57]} Kd6 {[%emt 0:00:09]} 87. Kg5 {[%emt 0:01:22]} Kc5 {[%emt 0:00:09]} 1/2-1/2

[Event "FIDE World Cup O12-A 2024"]
[Site "Batumi"]
[Date "2024.06.24"]
[Round "2.10"]
[White "Kozhedub, Ivan"]
[Black "Todua, Andria"]
[Result "1-0"]
[ECO "B26"]
[WhiteElo "1778"]
[BlackElo "1599"]
[Annotator "NA RC"]
[PlyCount "93"]
[EventDate "2024.06.23"]
[EventType "swiss"]
[EventCountry "GEO"]
[SourceTitle "playchess.com"]
[Source "ChessBase"]
[SourceQuality "1"]
[TimeControl "5400+30"]

1. e4 {[%emt 0:00:02]} c5 {[%emt 0:00:05]} 2. Nc3 {[%emt 0:00:08]} Nc6 {[%emt 0:00:08]} 3. g3 {[%emt 0:00:04]} g6 {[%emt 0:00:19]} 4. Bg2 {[%emt 0:00:08]} Bg7 {[%emt 0:00:39]} 5. d3 {[%emt 0:00:12]} d6 {[%emt 0:00:33]} 6. Nge2 {[%emt 0:00:23]} e6 {[%emt 0:00:28]} 7. O-O {[%emt 0:00:34]} Nge7 {[%emt 0:00:19]} 8. Be3 {[%emt 0:00:15]} Nd4 {[%emt 0:00:36]} 9. Qd2 {[%emt 0:00:16]} O-O {[%emt 0:00:26]} 10. Nd1 {[%emt 0:00:09]} Rb8 {[%emt 0:00:56]} 11. c3 {[%emt 0:00:10]} Nxe2+ {[%emt 0:00:05]} 12. Qxe2 {[%emt 0:00:03]} b5 {[%emt 0:00:25]} 13. d4 {[%emt 0:03:31]} cxd4 {[%emt 0:00:45]} 14. Bxd4 {[%emt 0:00:17]} Bxd4 {[%emt 0:00:04]} 15. cxd4 {[%emt 0:00:03]} Nc6 {[%emt 0:00:09]} 16. Qd2 {[%emt 0:03:25]} e5 {[%emt 0:00:45]} 17. dxe5 {[%emt 0:00:52]} dxe5 {[%emt 0:00:04]} 18. Qh6 {[%emt 0:00:08]} Nd4 {[%emt 0:03:51]} 19. Ne3 {[%emt 0:01:35]} Be6 {[%emt 0:06:56]} 20. Kh1 {[%emt 0:04:50]} Bc4 {[%emt 0:00:20]} 21. Rfd1 {[%emt 0:02:36]} Be2 {[%emt 0:01:42]} 22. Rdc1 {[%emt 0:05:02]} Qd6 {[%emt 0:03:17]} 23. Nd5 {[%emt 0:12:17]} Bc4 {[%emt 0:00:29]} 24. Ne3 {[%emt 0:02:19]} Rfc8 {[%emt 0:05:32]} 25. b3 {[%emt 0:03:32]} Be6 {[%emt 0:00:16]} 26. f4 {[%emt 0:06:48]} Rxc1+ {[%emt 0:08:42]} 27. Rxc1 {[%emt 0:00:09]} Qa3 {[%emt 0:00:13]} 28. Rf1 {[%emt 0:03:23]} f6 {[%emt 0:00:54]} 29. f5 {[%emt 0:01:55]} Bf7 {[%emt 0:00:22]} 30. Ng4 {[%emt 0:00:17]} Rb6 {[%emt 0:01:11]} 31. fxg6 {[%emt 0:00:12]} hxg6 {[%emt 0:00:02]} 32. Nxf6+ {[%emt 0:05:12]} Rxf6 {[%emt 0:00:23]} 33. Rxf6 {[%emt 0:00:03]} Qxa2 {[%emt 0:00:17]} 34. Qg5 {[%emt 0:01:38]} Nxb3 {[%emt 0:01:50]} 35. h4 {[%emt 0:01:23]} Nc5 {[%emt 0:05:07]} 36. Rc6 {[%emt 0:06:20]} Qa1+ {[%emt 0:02:54]} 37. Kh2 {[%emt 0:00:10]} Qd4 {[%emt 0:01:48]} 38. Qe7 {[%emt 0:01:40]} Ne6 {[%emt 0:02:30]} 39. Rxe6 {[%emt 0:00:06]} Bxe6 {[%emt 0:00:05]} 40. Qxe6+ {[%emt 0:00:02]} Kg7 {[%emt 0:00:15]} 41. Qe7+ {[%emt 0:00:10]} Kg8 {[%emt 0:01:26]} 42. Qe8+ {[%emt 0:00:04]} Kh7 {[%emt 0:00:13]} 43. Qxb5 {[%emt 0:00:14]} Qc3 {[%emt 0:00:23]} 44. Qb7+ {[%emt 0:00:09]} Kh6 {[%emt 0:00:16]} 45. Qxa7 {[%emt 0:00:06]} Qb2 {[%emt 0:00:53]} 46. Qf7 {[%emt 0:00:41]} Qd4 {[%emt 0:00:25]} 47. Qg8 {[%emt 0:00:06]} 1-0

[Event "FIDE World Cup O12-A 2024"]
[Site "Batumi"]
[Date "2024.06.24"]
[Round "2.11"]
[White "Tavberidze, Alexandre"]
[Black "Haresh, Venkata Narayanaswam"]
[Result "0-1"]
[ECO "B92"]
[WhiteElo "1529"]
[BlackElo "1728"]
[Annotator "NA RC"]
[PlyCount "190"]
[EventDate "2024.06.23"]
[EventType "swiss"]
[EventCountry "GEO"]
[SourceTitle "playchess.com"]
[Source "ChessBase"]
[SourceQuality "1"]
[TimeControl "5400+30"]

1. e4 {[%emt 0:00:02]} c5 {[%emt 0:00:08]} 2. Nf3 {[%emt 0:00:07]} d6 {[%emt 0:00:08]} 3. d4 {[%emt 0:00:09]} cxd4 {[%emt 0:00:07]} 4. Nxd4 {[%emt 0:00:06]} Nf6 {[%emt 0:00:09]} 5. Nc3 {[%emt 0:00:10]} a6 {[%emt 0:00:07]} 6. Be2 {[%emt 0:00:24]} e5 {[%emt 0:00:07]} 7. Nb3 {[%emt 0:00:08]} Be7 {[%emt 0:00:18]} 8. O-O {[%emt 0:00:19]} Be6 {[%emt 0:00:27]} 9. Be3 {[%emt 0:02:16]} Nbd7 {[%emt 0:01:56]} 10. Kh1 {[%emt 0:02:11]} b5 {[%emt 0:02:40]} 11. f3 {[%emt 0:12:32]} O-O {[%emt 0:01:29]} 12. Qd2 {[%emt 0:05:31]} Nb6 {[%emt 0:01:57]} 13. Bxb6 {[%emt 0:01:42]} Qxb6 {[%emt 0:00:12]} 14. Rad1 {[%emt 0:03:13]} Rad8 {[%emt 0:09:18]} 15. Nd5 {[%emt 0:06:13]} Nxd5 {[%emt 0:01:18]} 16. exd5 {[%emt 0:01:55]} Bd7 {[%emt 0:02:30]} 17. f4 {[%emt 0:03:33]} exf4 {[%emt 1:16:09]} 18. Qxf4 {[%emt 0:00:52]} Bf6 {[%emt 0:00:00]} 19. c3 {[%emt 0:01:12]} Be5 {[%emt 0:00:00]} 20. Qf2 {[%emt 0:01:05]} Qb7 {[%emt 0:00:00]} 21. Bd3 {[%emt 0:06:06]} g6 {[%emt 0:00:00]} 22. Be2 {[%emt 0:03:34]} Ra8 {[%emt 0:00:00]} 23. Bf3 {[%emt 0:03:47]} b4 {[%emt 0:00:00]} 24. c4 {[%emt 0:02:08]} Qc7 {[%emt 0:00:00]} 25. c5 {[%emt 0:08:37]} Bb5 {[%emt 0:00:00]} 26. Rfe1 {[%emt 0:01:19]} dxc5 {[%emt 0:00:00]} 27. Nxc5 {[%emt 0:02:01]} Bxh2 {[%emt 0:00:00]} 28. Ne4 {[%emt 0:02:44]} Be5 {[%emt 0:00:00]} 29. d6 {[%emt 0:04:46]} Qd8 {[%emt 0:00:00]} 30. d7 {[%emt 0:01:34]} Bc6 {[%emt 0:00:00]} 31. Nc5 {[%emt 0:02:08]} Bxf3 {[%emt 0:00:00]} 32. gxf3 {[%emt 0:00:05]} Qc7 {[%emt 0:00:03]} 33. Re2 {[%emt 0:02:23]} Bg3 {[%emt 0:02:49]} 34. Qd4 {[%emt 0:00:18]} Rfd8 {[%emt 0:02:55]} 35. Qd5 {[%emt 0:01:09]} Qf4 {[%emt 0:00:47]} 36. Kg2 {[%emt 0:02:47]} Bh4 {[%emt 0:00:56]} 37. Qe5 {[%emt 0:00:33]} Qxe5 {[%emt 0:01:45]} 38. Rxe5 {[%emt 0:00:05]} Ra7 {[%emt 0:00:24]} 39. Re8+ {[%emt 0:00:09]} Kg7 {[%emt 0:00:00]} 40. Re4 {[%emt 0:01:01]} Bf6 {[%emt 0:01:51]} 41. Rd6 {[%emt 0:05:10]} Rc7 {[%emt 0:00:00]} 42. Rd5 {[%emt 0:01:41]} Kf8 {[%emt 0:00:05]} 43. Nxa6 {[%emt 0:01:49]} Rcxd7 {[%emt 0:00:02]} 44. Rxd7 {[%emt 0:00:09]} Rxd7 {[%emt 0:00:00]} 45. Rxb4 {[%emt 0:00:24]} Rd2+ {[%emt 0:00:10]} 46. Kg3 {[%emt 0:00:20]} Rxb2 {[%emt 0:00:08]} 47. Rxb2 {[%emt 0:00:08]} Bxb2 {[%emt 0:00:01]} 48. Nc5 {[%emt 0:00:25]} Ba3 {[%emt 0:00:11]} 49. Ne4 {[%emt 0:00:40]} f5 {[%emt 0:00:24]} 50. Nc3 {[%emt 0:00:14]} Ke8 {[%emt 0:01:20]} 51. Nd5 {[%emt 0:00:31]} h6 {[%emt 0:00:56]} 52. f4 {[%emt 0:00:51]} Kf7 {[%emt 0:00:33]} 53. Nc3 {[%emt 0:00:20]} g5 {[%emt 0:01:21]} 54. Nb5 {[%emt 0:00:21]} Bb4 {[%emt 0:00:20]} 55. a4 {[%emt 0:00:14]} Be1+ {[%emt 0:00:29]} 56. Kf3 {[%emt 0:00:21]} g4+ {[%emt 0:00:27]} 57. Ke2 {[%emt 0:00:19]} Bb4 {[%emt 0:00:20]} 58. Nd4 {[%emt 0:00:28]} Kf6 {[%emt 0:00:58]} 59. Nc6 {[%emt 0:00:17]} Bc5 {[%emt 0:00:34]} 60. a5 {[%emt 0:00:08]} Ke6 {[%emt 0:00:50]} 61. Nd8+ {[%emt 0:01:05]} Kd5 {[%emt 0:00:18]} 62. Nf7 {[%emt 0:00:11]} h5 {[%emt 0:00:21]} 63. a6 {[%emt 0:00:26]} Ke4 {[%emt 0:00:52]} 64. Ne5 {[%emt 0:00:21]} g3 {[%emt 0:00:40]} 65. Kf1 {[%emt 0:00:03]} Ba7 {[%emt 0:00:31]} 66. Ng6 {[%emt 0:00:10]} Kf3 {[%emt 0:00:18]} 67. Nh4+ {[%emt 0:00:25]} Kxf4 {[%emt 0:00:14]} 68. Kg2 {[%emt 0:00:07]} Kg4 {[%emt 0:00:22]} 69. Nxf5 {[%emt 0:00:38]} h4 {[%emt 0:00:55]} 70. Nh6+ {[%emt 0:00:18]} Kg5 {[%emt 0:00:37]} 71. Nf7+ {[%emt 0:00:15]} Kf6 {[%emt 0:00:33]} 72. Nd6 {[%emt 0:00:13]} Ke5 {[%emt 0:00:33]} 73. Nb5 {[%emt 0:00:40]} Bb6 {[%emt 0:00:22]} 74. a7 {[%emt 0:00:10]} Bxa7 {[%emt 0:00:07]} 75. Nxa7 {[%emt 0:00:06]} Kf4 {[%emt 0:00:07]} 76. Nc6 {[%emt 0:00:27]} h3+ {[%emt 0:00:35]} 77. Kg1 {[%emt 0:00:51]} Kg4 {[%emt 0:01:56]} 78. Ne5+ {[%emt 0:00:16]} Kf4 {[%emt 0:00:00]} 79. Ng6+ {[%emt 0:00:41]} Ke3 {[%emt 0:00:04]} 80. Ne5 {[%emt 0:00:23]} Ke4 {[%emt 0:00:51]} 81. Ng4 {[%emt 0:00:14]} Kf4 {[%emt 0:00:17]} 82. Nh2 {[%emt 0:01:26]} Ke4 {[%emt 0:00:43]} 83. Nf1 {[%emt 0:00:12]} g2 {[%emt 0:00:24]} 84. Nh2 {[%emt 0:01:02]} Ke3 {[%emt 0:00:29]} 85. Ng4+ {[%emt 0:00:08]} Kf3 {[%emt 0:00:30]} 86. Nf6 {[%emt 0:00:42]} Kg3 {[%emt 0:00:35]} 87. Ne4+ {[%emt 0:00:04]} Kf4 {[%emt 0:00:23]} 88. Nf2 {[%emt 0:00:14]} Kg3 {[%emt 0:00:23]} 89. Ne4+ {[%emt 0:00:05]} Kf3 {[%emt 0:00:12]} 90. Nd2+ {[%emt 0:00:44]} Ke3 {[%emt 0:01:05]} 91. Nf1+ {[%emt 0:00:43]} Kf4 {[%emt 0:00:29]} 92. Nd2 {[%emt 0:00:14]} Ke3 {[%emt 0:00:21]} 93. Nf1+ {[%emt 0:00:07]} Ke2 {[%emt 0:00:13]} 94. Ng3+ {[%emt 0:00:36]} Kf3 {[%emt 0:00:35]} 95. Nf1 {[%emt 0:00:12]} gxf1=Q+ {[%emt 0:00:46]} 0-1